bitfinex-derivatives/quotes_ETHF0:USTF0_20260207
["timestamp","ask_amount","ask_price","bid_price","bid_amount"]
[1770469588247,6.83243392,2044.9,2043.9,11.02672058]
[1770469589147,0.00442393,2044.9,2043.9,11.02672058]
[1770469590959,10.75343392,2044.9,2043.9,11.02672058]
[1770469591552,10.75343392,2044.9,2043.9,0.00542792]
[1770469592947,10.75343392,2044.9,2043.9,11.02672058]
[1770469593149,10.75343392,2044.9,2043.9,0.00542792]
[1770469593556,10.75343392,2044.9,2043.5,11.02129266]
[1770469593757,10.74900999,2044.7,2043.5,11.02129266]
[1770469594153,10.74900999,2044.7,2042.9,0.24501]
[1770469594353,10.74900999,2044.7,2043.0,11.02129266]
[1770469594556,10.74900999,2044.7,2043.0,11.02535819]
[1770469595154,10.74900999,2044.7,2043.0,11.27035819]
[1770469595760,10.74900999,2044.7,2043.4,11.02129266]
[1770469602667,11.40075312,2044.4,2043.4,11.02129266]
[1770469603766,11.40075312,2044.4,2043.0,0.00406553]
[1770469603767,11.64558312,2044.4,2043.1,10.80158202]
[1770469604173,11.40075312,2044.2,2043.1,10.80158202]
[1770469604671,11.64563312,2044.0,2043.0,0.00406553]
[1770469604867,11.64563312,2044.0,2042.7,10.80158202]
[1770469605866,11.64563312,2044.0,2042.7,10.80550256]
[1770469607575,11.40075312,2043.8,2042.7,10.80550256]
[1770469608869,11.40075312,2043.8,2042.7,0.00392054]
[1770469611377,11.64565312,2043.8,2042.7,0.00392054]
[1770469611775,11.40075312,2043.6,2042.7,0.00392054]
[1770469612079,11.40075312,2043.2,2041.9,10.80158202]
[1770469612976,11.40485021,2043.2,2041.9,10.80767429]
[1770469613583,11.64982021,2043.2,2041.9,10.80767429]
[1770469613787,11.40075312,2042.9,2041.9,0.00609227]
[1770469613983,11.40075312,2042.7,2041.9,13.17212771]
[1770469614179,14.02052987,2042.7,2041.9,6.60768431]
[1770469614586,11.40075312,2042.7,2042.0,11.83396456]
[1770469614787,0.00409709,2043.2,2042.0,11.83396456]
[1770469615191,0.00409709,2043.2,2042.0,11.83916193]
[1770469615390,0.20977726,2043.1,2042.0,11.83916193]
[1770469616092,0.20977726,2042.9,2042.0,0.00519737]
[1770469616292,0.20457989,2042.8,2041.9,6.60768431]
[1770469617292,0.20457989,2042.8,2042.0,11.83396456]
[1770469619285,0.00409709,2043.2,2042.0,11.83396456]
[1770469619590,0.18425212,2043.2,2042.0,11.83396456]
[1770469619792,0.00409709,2043.2,2042.0,11.83396456]
[1770469620592,0.18425212,2043.2,2042.0,11.83396456]
[1770469621294,0.18015503,2043.7,2042.3,11.74388704]
[1770469621688,0.24493,2043.6,2042.3,11.74388704]
[1770469621884,0.08517252,2044.4,2042.6,11.70005061]
[1770469621885,0.26782789,2044.0,2042.6,11.70005061]
[1770469622091,0.51269789,2044.1,2042.6,11.70005061]
[1770469622394,0.26782789,2044.0,2042.6,11.70005061]
[1770469622792,0.24891259,2044.1,2042.6,11.70005061]
[1770469623096,0.26782789,2044.0,2042.6,11.70005061]
[1770469625598,0.00404259,2044.1,2042.9,11.79638836]
[1770469626199,0.00404259,2044.1,2043.2,11.79638836]
[1770469627294,0.09432236,2044.1,2042.6,11.77512252]
[1770469627897,0.13262819,2043.8,2042.6,11.77512252]
[1770469629100,2.61977675,2043.3,2042.2,11.77512252]
[1770469629402,0.00404259,2044.1,2042.7,11.84143662]
[1770469629602,0.24489,2043.9,2042.7,11.84143662]
[1770469631300,0.3893974,2043.9,2042.7,11.84143662]
[1770469631502,0.1445074,2043.8,2042.7,11.84143662]
[1770469631692,2.62381934,2044.1,2042.7,11.84143662]
[1770469631896,0.14854999,2044.1,2042.7,11.84143662]
[1770469632304,0.1445074,2044.0,2042.7,11.84143662]
[1770469633701,0.00404259,2044.1,2042.7,11.84143662]
[1770469633892,0.00404259,2044.1,2042.9,11.76142941]
[1770469634302,0.14563196,2044.1,2042.9,11.76142941]
[1770469636503,0.11114332,2043.8,2042.9,11.76142941]
[1770469636706,0.11114332,2044.0,2042.9,11.76142941]
[1770469638607,0.00404259,2044.1,2043.1,11.79393708]
[1770469639706,0.06792896,2044.1,2043.1,11.79393708]
[1770469640096,0.00404259,2044.1,2043.1,11.79393708]
[1770469640807,0.06792896,2044.5,2043.1,11.79393708]
[1770469641803,0.07234389,2044.5,2043.1,11.79393708]
[1770469642199,0.00441493,2044.5,2043.1,11.79393708]
[1770469642707,0.09763228,2044.5,2043.1,11.79393708]
[1770469644309,0.00441493,2044.5,2043.1,11.79393708]
[1770469649512,0.08153231,2044.5,2043.1,11.79393708]
[1770469652009,0.07309309,2044.1,2043.1,11.79393708]
[1770469652214,0.07309309,2043.8,2042.9,11.50679392]
[1770469652415,0.40228749,2043.7,2042.9,11.50679392]
[1770469652612,0.40228749,2043.5,2042.7,11.63108035]
[1770469653116,7.60823489,2043.5,2042.7,11.63108035]
[1770469653308,0.40228749,2043.4,2042.7,11.63108035]
[1770469653713,0.30263613,2043.3,2042.3,11.68090602]
[1770469653911,0.30263613,2043.0,2042.3,11.68090602]
[1770469654112,0.30607411,2043.0,2042.3,11.68090602]
[1770469654311,0.30607411,2043.0,2042.1,11.68090602]
[1770469657317,0.00343798,2043.0,2042.1,11.68090602]
[1770469664421,0.13428268,2043.6,2042.1,11.68090602]
[1770469665522,0.13798355,2043.6,2042.1,11.68090602]
[1770469667016,0.13798355,2043.6,2042.4,11.73536206]
[1770469672324,0.46464263,2043.2,2042.4,11.73536206]
[1770469672518,0.21966263,2043.1,2042.4,11.73536206]
[1770469673525,0.21948491,2043.5,2042.4,11.73536206]
[1770469675518,0.15367039,2042.8,2042.0,11.75620352]
[1770469675715,0.15367039,2042.7,2042.0,11.75620352]
[1770469675920,0.15367039,2042.7,2041.9,18.36746319]
[1770469677628,0.15367039,2042.7,2042.0,11.83303872]
[1770469678027,0.24504,2042.6,2041.9,6.61125967]
[1770469678529,7.4510074,2042.5,2041.6,11.83303872]
[1770469679330,0.24506,2042.5,2041.6,11.83683305]
[1770469679531,7.2059474,2042.8,2041.6,11.83683305]
[1770469680228,7.2059474,2042.7,2041.6,11.83683305]
[1770469682331,7.2059474,2042.6,2041.6,11.83683305]
[1770469682834,7.2059474,2042.7,2041.6,11.83683305]
[1770469684037,8.5906055,2042.9,2041.6,11.83683305]
[1770469684038,7.2059474,2042.4,2041.6,11.83683305]
[1770469684235,7.4510074,2042.5,2041.6,11.83683305]
[1770469685535,7.2059474,2042.5,2041.6,11.83683305]
[1770469685735,15.7965529,2042.8,2041.6,11.83683305]
[1770469686036,7.2059474,2042.8,2041.6,11.83683305]
[1770469690738,7.2059474,2042.4,2041.6,11.83683305]
[1770469691433,7.4510074,2042.5,2041.6,11.83683305]
[1770469691629,7.2059474,2042.4,2041.6,11.83683305]
[1770469692040,7.4510074,2042.5,2041.6,11.83683305]
[1770469692239,0.24506,2042.5,2041.6,11.83683305]
[1770469695745,7.4510074,2042.5,2041.6,11.83683305]
[1770469700242,7.2059474,2042.4,2041.6,11.83683305]
[1770469702450,7.2059474,2042.3,2041.6,11.83683305]
[1770469704254,7.2059474,2042.2,2041.6,11.83683305]
[1770469704561,15.7965529,2042.4,2041.6,11.83683305]
[1770469704755,7.2059474,2042.4,2041.6,11.83683305]
[1770469705052,8.5906055,2042.6,2041.6,11.83683305]
[1770469705256,6.8066747,2042.5,2041.6,11.83683305]
[1770469708565,6.73330511,2042.4,2041.6,11.83683305]
[1770469711360,6.94139933,2042.6,2041.6,11.83683305]
[1770469711565,6.69635933,2042.5,2041.6,11.83683305]
[1770469712560,6.69635933,2042.1,2041.4,11.22382729]
[1770469713261,6.94145933,2042.1,2041.4,11.22382729]
[1770469713762,6.94645952,2042.1,2041.4,11.22767394]
[1770469714167,6.70135952,2042.1,2041.4,11.22767394]
[1770469714363,8.5906055,2042.5,2041.4,11.22767394]
[1770469714556,6.74133934,2042.7,2041.4,11.22767394]
[1770469715458,0.0048745,2042.7,2041.4,11.22767394]
[1770469716969,8.59548,2042.7,2041.4,11.22767394]
[1770469717271,0.0048745,2042.7,2041.4,11.22767394]
[1770469718163,17.25250768,2043.0,2041.6,10.85840097]
[1770469718164,6.75775323,2043.0,2041.6,10.85840097]
[1770469719272,6.75775323,2042.9,2041.6,10.85840097]
[1770469720767,0.00383825,2043.0,2041.6,10.85840097]
[1770469721371,6.74860366,2043.0,2041.6,10.85840097]
[1770469722372,6.81684649,2043.0,2041.6,10.85840097]
[1770469727182,0.00383825,2043.0,2041.6,10.85840097]
[1770469727372,6.20767989,2043.0,2041.6,10.85840097]
[1770469727879,0.00383825,2043.0,2041.6,10.85840097]
[1770469729879,6.08056472,2043.0,2041.6,10.85840097]
[1770469731585,5.95372377,2042.6,2041.6,10.85840097]
[1770469731885,5.95372377,2042.4,2041.6,10.85840097]
[1770469732878,5.91826281,2042.2,2041.6,10.85840097]
[1770469733076,5.91826281,2042.2,2041.4,10.86224762]
[1770469733276,5.91826281,2042.2,2041.4,0.00384665]
[1770469733681,6.09651125,2041.9,2040.9,10.85840097]
[1770469734682,6.06134012,2041.6,2040.9,0.00530729]
[1770469736973,6.06134012,2041.6,2040.9,10.86370826]
[1770469737179,6.04431229,2041.8,2040.9,10.86370826]
[1770469738484,5.92738194,2042.0,2040.9,10.86370826]
[1770469738686,8.5906055,2042.2,2040.9,10.86370826]
[1770469738984,5.92738194,2042.2,2040.9,13.48562337]
[1770469739382,5.92738194,2042.2,2040.9,10.86370826]
[1770469739682,5.91498641,2042.5,2040.9,10.86370826]
[1770469739884,5.91498641,2042.5,2041.2,10.85840097]
[1770469740784,5.88160401,2042.8,2041.2,10.85840097]
[1770469741172,8.5906055,2043.1,2040.9,0.00530729]
[1770469741173,5.88160401,2043.1,2041.9,10.85840097]
[1770469741377,5.88544226,2043.0,2041.9,10.85840097]
[1770469741980,0.00383825,2043.0,2041.9,10.85840097]
[1770469742883,5.79748635,2043.0,2041.9,10.85840097]
[1770469743586,0.00383825,2043.0,2041.9,10.85840097]
[1770469745273,0.00383825,2043.0,2041.2,3.16268557]
[1770469745274,5.52407029,2043.5,2042.2,10.85840097]
[1770469746084,5.49493318,2043.9,2042.2,10.85840097]
[1770469746482,5.49938268,2043.9,2042.2,10.85840097]
[1770469746778,5.49938268,2043.9,2042.5,10.449468]
[1770469746983,5.49938268,2043.9,2042.5,10.45475319]
[1770469748188,0.0044495,2043.9,2042.5,10.45475319]
[1770469748986,5.39633071,2043.9,2042.5,10.45475319]
[1770469750178,5.34967655,2043.9,2042.5,10.45475319]
[1770469752177,5.34967655,2043.9,2042.8,10.8253557]
[1770469752178,0.0044495,2043.9,2042.8,10.8253557]
[1770469752378,0.0044495,2043.9,2043.1,10.8253557]
[1770469752591,5.26425201,2044.4,2043.1,10.8253557]
[1770469753591,5.27007546,2044.4,2043.1,10.8253557]
[1770469755698,5.17170072,2043.9,2043.1,10.8253557]
[1770469755891,10.36561292,2043.6,2042.6,10.8253557]
[1770469762399,10.36561292,2043.9,2042.6,10.8253557]
[1770469762898,10.36561292,2044.3,2042.9,10.8253557]
[1770469765599,10.36561292,2044.3,2043.1,10.8253557]
[1770469767496,0.00582345,2044.4,2043.1,10.8253557]
[1770469768195,0.08516689,2044.8,2043.7,10.8253557]
[1770469768397,10.36561292,2044.9,2043.7,10.8253557]
[1770469769393,10.3708567,2044.9,2043.7,10.8253557]
[1770469769797,0.00524378,2044.9,2043.7,11.13588588]
[1770469770101,0.00524378,2044.9,2044.0,10.8253557]
[1770469770401,7.52091511,2045.8,2043.7,0.31053018]
[1770469770402,10.36561292,2045.9,2044.5,10.8253557]
[1770469770804,10.36561292,2046.3,2044.8,10.8253557]
[1770469771196,10.37091125,2046.3,2044.8,10.83063868]
[1770469771398,10.36561292,2045.7,2044.8,10.83063868]
[1770469771705,10.36561292,2046.1,2044.8,10.83063868]
[1770469772202,10.37091125,2046.3,2045.1,10.8253557]
[1770469772401,0.00529833,2046.3,2045.1,10.8253557]
[1770469772598,10.36561292,2046.9,2045.7,10.8253557]
[1770469772798,10.36561292,2046.3,2044.9,10.8253557]
[1770469773505,10.37104201,2046.3,2044.9,10.8253557]
[1770469773693,10.36561292,2046.2,2044.9,10.8253557]
[1770469774093,0.00542909,2046.3,2045.2,10.8253557]
[1770469774299,10.37104201,2046.3,2045.2,10.8253557]
[1770469774504,0.00542909,2046.3,2045.2,10.8253557]
[1770469775299,0.00542909,2046.3,2044.8,2.62719809]
[1770469775300,2.62191511,2045.9,2045.0,10.8253557]
[1770469775501,10.36561292,2045.8,2045.0,10.8253557]
[1770469776394,11.12476371,2046.1,2045.0,10.8253557]
[1770469779002,0.00542909,2046.3,2045.2,10.28213118]
[1770469779200,11.1301928,2046.3,2045.2,10.28213118]
[1770469780103,0.00542909,2046.3,2045.2,10.28213118]
[1770469780406,11.1301928,2046.3,2045.2,10.28213118]
[1770469780608,11.12476371,2046.1,2045.2,10.28213118]
[1770469783103,11.12476371,2046.1,2044.8,0.00528298]
[1770469783104,11.12476371,2046.1,2044.9,10.28213118]
[1770469783402,11.12476371,2045.9,2044.9,10.28213118]
[1770469784998,11.1301928,2046.3,2044.9,10.28213118]
[1770469785609,13.75210791,2046.3,2044.9,10.28213118]
[1770469786412,11.12476371,2045.9,2044.9,10.28213118]
[1770469786803,11.12476371,2046.2,2044.9,10.28213118]
[1770469788605,0.00542909,2046.3,2045.2,10.28213118]
[1770469788801,13.75210791,2046.3,2045.2,10.28213118]
[1770469789104,2.62191511,2045.4,2044.8,0.00528298]
[1770469789311,11.12476371,2045.3,2044.5,10.28213118]
[1770469789908,11.12476371,2045.3,2044.3,10.28213118]
[1770469790308,11.12476371,2045.3,2044.3,10.28829622]
[1770469790714,11.12476371,2045.0,2044.3,0.00616504]
[1770469793316,11.36953371,2045.0,2043.7,10.28213118]
[1770469793520,11.12476371,2044.9,2043.7,10.28213118]
[1770469794317,11.12476371,2044.9,2043.7,10.28774179]
[1770469799627,0.24477,2045.0,2043.7,10.28774179]
[1770469799926,11.12476371,2045.1,2043.7,10.28774179]
[1770469800423,13.1165428,2046.0,2043.7,10.28774179]
[1770469800424,11.12476371,2045.6,2043.9,10.28213118]
[1770469800625,11.12476371,2046.0,2044.3,10.28213118]
[1770469800929,11.36940371,2046.0,2044.3,10.28213118]
[1770469802725,11.12476371,2045.7,2044.3,10.28213118]
[1770469802927,11.36949371,2045.2,2044.3,10.28213118]
[1770469803727,11.12476371,2045.0,2044.3,10.28213118]
[1770469803923,11.36953371,2045.0,2043.8,10.28213118]
[1770469806930,13.4896055,2045.7,2043.8,10.28213118]
[1770469806931,10.55805812,2044.8,2043.8,10.28213118]
[1770469807232,10.56156527,2044.8,2043.8,10.28213118]
[1770469807533,10.56156527,2044.8,2043.7,0.00269362]
[1770469807534,10.31327812,2044.3,2043.7,0.00269362]
[1770469807934,10.56156527,2044.8,2043.7,10.3466831]
[1770469808324,10.31327812,2044.5,2043.7,0.00269362]
[1770469808528,10.31327812,2044.2,2043.3,10.34398948]
[1770469809533,10.31327812,2044.2,2043.3,10.34937219]
[1770469809934,10.31327812,2044.7,2043.3,10.34937219]
[1770469813529,10.3521325,2044.5,2043.3,10.34937219]
[1770469816646,10.1073125,2044.2,2043.3,0.00538271]
[1770469816942,10.1073125,2044.2,2043.3,10.43046996]
[1770469817342,10.1073125,2044.2,2043.3,0.00538271]
[1770469817544,10.1073125,2044.2,2043.3,10.43046996]
[1770469818339,10.1073125,2044.5,2043.3,10.43046996]
[1770469820756,10.1073125,2044.3,2043.3,10.43046996]
[1770469821042,10.3521525,2044.3,2043.3,10.43046996]
[1770469821344,0.24484,2044.3,2043.3,10.43046996]
[1770469821847,10.1073125,2044.5,2043.3,10.43046996]
[1770469822442,10.3521025,2044.7,2043.3,10.43046996]
[1770469823243,0.24479,2044.7,2043.4,10.42508725]
[1770469823444,0.24479,2044.7,2043.5,10.42508725]
[1770469824846,0.00350715,2044.8,2043.5,10.42508725]
[1770469825050,0.00350715,2044.8,2043.6,5.07281129]
[1770469825249,0.00350715,2044.8,2043.7,10.42508725]
[1770469825444,0.00350715,2044.8,2043.7,13.32516023]
[1770469825639,0.00350715,2044.8,2043.8,10.42508725]
[1770469831351,10.11081965,2044.8,2043.8,10.42508725]
[1770469831857,10.1073125,2044.5,2043.8,10.42508725]
[1770469832355,10.1073125,2044.7,2043.8,10.42508725]
[1770469835861,10.3521425,2044.4,2043.3,9.83927167]
[1770469836156,9.6310191,2044.1,2043.3,0.00538271]
[1770469837053,9.6310191,2044.0,2042.8,9.83388896]
[1770469837956,9.6310191,2044.0,2042.8,9.83895088]
[1770469838557,9.8758991,2044.0,2042.8,0.00506192]
[1770469838764,9.6310191,2043.8,2042.8,0.00506192]
[1770469839154,9.8759291,2043.8,2042.8,0.00506192]
[1770469840257,9.6310191,2043.8,2042.8,0.00506192]
[1770469840453,9.6310191,2043.8,2042.4,9.83388896]
[1770469840454,9.6310191,2043.6,2042.4,9.83388896]
[1770469841256,20.13064805,2044.0,2042.5,9.83388896]
[1770469841458,9.6310191,2043.9,2042.5,9.83908294]
[1770469845564,9.6310191,2043.6,2042.5,9.83908294]
[1770469852464,8.5906055,2044.2,2042.5,9.83908294]
[1770469852465,9.8758691,2044.2,2042.5,9.83908294]
[1770469852963,0.24486,2044.1,2042.5,9.83908294]
[1770469853167,9.6310191,2044.0,2042.5,9.83908294]
[1770469854469,9.6310191,2043.9,2042.5,9.83908294]
[1770469857568,9.8759491,2043.6,2042.5,9.83908294]
[1770469858462,0.24494,2043.5,2042.5,0.00519398]
[1770469858669,9.6310191,2043.3,2042.5,9.83908294]
[1770469858969,9.63582089,2043.3,2042.5,9.83908294]
[1770469865872,9.6310191,2043.7,2042.5,9.83908294]
[1770469866873,9.63572844,2043.7,2042.5,9.83908294]
[1770469867770,0.00470934,2043.7,2042.5,9.83908294]
[1770469868076,10.00412398,2043.9,2042.8,9.99142446]
[1770469868774,0.24489,2043.9,2042.8,9.99142446]
[1770469869079,9.75923398,2044.4,2043.3,9.99142446]
[1770469869270,10.49962895,2044.5,2043.4,9.99142446]
[1770469869271,10.00405398,2044.5,2043.4,9.99142446]
[1770469870168,10.0089053,2044.5,2043.4,9.99142446]
[1770469870369,9.7640853,2044.5,2043.4,9.99142446]
[1770469871265,0.00485132,2044.5,2043.4,9.99142446]
[1770469872876,0.24476,2045.0,2043.5,9.86955713]
[1770469873073,10.05283423,2044.9,2043.5,9.86955713]
[1770469873474,10.05283423,2044.6,2043.5,9.86955713]
[1770469873977,10.05768992,2044.6,2043.5,9.86955713]
[1770469875975,10.05283423,2044.1,2042.9,9.86955713]
[1770469877179,10.05283423,2043.9,2042.9,9.86955713]
[1770469880478,10.05283423,2043.6,2042.7,9.86955713]
[1770469880686,10.05283423,2043.6,2042.5,9.87475111]
[1770469882784,2.61891099,2044.0,2042.8,9.86955713]
[1770469882785,10.05283423,2044.0,2042.8,9.86955713]
[1770469882977,10.05283423,2044.2,2042.8,9.86955713]
[1770469883173,10.05283423,2044.5,2043.4,9.86955713]
[1770469884983,10.05283423,2044.2,2043.2,9.86955713]
[1770469886888,10.05283423,2044.5,2043.2,9.86955713]
[1770469889692,10.05768992,2044.6,2043.4,9.86955713]
[1770469892081,10.05283423,2044.9,2044.0,9.86955713]
[1770469892285,10.05283423,2045.1,2044.0,9.86955713]
[1770469893083,10.05283423,2045.3,2044.3,9.86955713]
[1770469893282,10.05682698,2045.3,2044.3,9.87551494]
[1770469893791,0.00399275,2045.3,2044.3,9.87551494]
[1770469894082,10.05682698,2045.3,2044.3,9.87551494]
[1770469894482,0.00399275,2045.3,2044.3,9.87551494]
[1770469894883,10.05682698,2045.3,2044.3,9.87551494]
[1770469895078,0.00399275,2045.3,2044.3,9.87551494]
[1770469896688,0.00399275,2045.3,2044.3,12.49442593]
[1770469896990,0.00399275,2045.3,2044.4,9.60744914]
[1770469897788,9.31242117,2045.2,2044.3,9.61340695]
[1770469898383,9.31242117,2045.1,2044.3,9.61340695]
[1770469898795,9.31641392,2045.3,2044.3,9.61340695]
[1770469899491,0.00399275,2045.3,2044.3,9.61340695]
[1770469900795,9.31641392,2045.3,2044.3,9.61340695]
[1770469902507,9.31641392,2045.3,2044.3,0.00595781]
[1770469902706,9.31641392,2045.3,2044.3,9.61340695]
[1770469903310,9.31242117,2045.1,2044.3,9.61340695]
[1770469904008,9.31242117,2045.1,2044.3,0.00595781]
[1770469904604,9.31242117,2044.7,2043.6,9.60744914]
[1770469905609,9.31242117,2044.7,2043.6,9.61100058]
[1770469906507,9.31242117,2044.1,2042.9,9.60744914]
[1770469907514,9.31242117,2044.1,2042.9,9.61374436]
[1770469911610,9.31242117,2044.1,2043.0,9.60744914]
[1770469920621,9.31242117,2043.8,2042.9,0.00629522]
[1770469920815,0.00424146,2043.8,2042.9,9.61374436]
[1770469921014,9.31666263,2043.8,2042.9,9.61374436]
[1770469925122,9.31666263,2043.8,2042.9,0.00629522]
[1770469929017,9.31666263,2043.8,2042.6,8.93116997]
[1770469929415,9.56156263,2043.8,2042.6,8.93116997]
[1770469929725,8.83202141,2043.6,2042.4,8.93116997]
[1770469929921,8.83202141,2043.6,2042.4,8.935189]
[1770469931120,8.83202141,2043.6,2042.4,0.00401903]
[1770469931320,9.60007586,2043.3,2042.4,0.00401903]
[1770469932421,9.60007586,2043.3,2042.4,9.05218838]
[1770469933526,9.60007586,2043.3,2042.2,9.04816935]
[1770469934122,9.84503586,2043.3,2041.7,9.04816935]
[1770469934527,9.60007586,2043.1,2041.7,9.05448764]
[1770469934823,9.84505586,2043.1,2041.7,9.05448764]
[1770469935023,9.60007586,2042.9,2041.7,9.05448764]
[1770469947539,9.60007586,2042.7,2041.7,9.05448764]
[1770469947930,9.84510586,2042.7,2041.7,9.05448764]
[1770469958439,9.01509598,2042.5,2041.7,8.29e-06]
[1770469958639,9.01509598,2042.4,2041.4,9.37890017]
[1770469958835,9.01509598,2042.0,2041.4,9.37890017]
[1770469959546,9.02095487,2042.0,2041.4,9.38441566]
[1770469959747,0.00585889,2042.0,2041.4,9.38441566]
[1770469960045,9.01509598,2042.3,2041.4,9.38441566]
[1770469960240,9.01509598,2042.5,2041.4,9.38441566]
[1770469960439,8.5906055,2042.6,2041.4,9.38441566]
[1770469960643,9.01509598,2042.8,2041.4,9.38441566]
[1770469961044,9.02113845,2042.8,2041.6,9.37890017]
[1770469962840,9.01509598,2042.6,2041.4,9.38441566]
[1770469963044,9.26025598,2041.7,2041.0,9.37890017]
[1770469963943,0.24517,2041.6,2041.0,9.37890017]
[1770469964143,9.01509598,2041.5,2041.0,0.00185716]
[1770469964348,9.01509598,2041.5,2040.7,9.37890017]
[1770469964548,9.01509598,2041.4,2040.7,9.37890017]
[1770469964750,9.01509598,2041.3,2040.7,9.37890017]
[1770469965245,9.01945767,2041.3,2040.7,9.38245522]
[1770469965947,9.01945767,2041.3,2040.7,0.00355505]
[1770469968247,9.01509598,2041.1,2040.2,9.37890017]
[1770469969246,9.01509598,2041.1,2040.2,9.38335309]
[1770469972556,0.24522,2041.2,2040.2,9.38335309]
[1770469972557,9.26031598,2041.2,2040.2,9.38335309]
[1770469972848,0.00436169,2041.3,2040.2,9.38335309]
[1770469973554,9.01945767,2041.3,2040.2,9.38335309]
[1770469978062,0.00436169,2041.3,2040.2,12.00871447]
[1770469978251,0.00436169,2041.3,2040.3,9.37890017]
[1770469980962,9.01945767,2041.3,2040.3,9.37890017]
[1770469981260,2.62536138,2041.0,2040.2,0.00445292]
[1770469981451,9.01509598,2040.9,2040.2,0.00445292]
[1770469982459,9.01509598,2040.9,2039.2,0.24545]
[1770469982460,9.01509598,2040.9,2039.8,9.37890017]
[1770469983463,9.01509598,2040.9,2039.8,9.38416671]
[1770469983958,9.01509598,2040.6,2039.8,0.00526654]
[1770469984162,9.01509598,2040.3,2039.4,9.37890017]
[1770469985159,9.01509598,2040.3,2039.4,9.38212591]
[1770469985558,9.01509598,2040.0,2039.4,0.00322574]
[1770469986865,9.01509598,2040.0,2039.4,9.10071995]
[1770469987161,9.01509598,2040.0,2038.9,9.09749421]
[1770469987758,9.27353214,2040.2,2038.9,9.42011118]
[1770469989469,9.51887214,2040.2,2038.9,9.09749421]
[1770469990266,8.77702792,2040.0,2038.9,9.09749421]
[1770469991369,16.24644629,2040.6,2038.9,11.72285559]
[1770469991576,9.02231792,2040.6,2039.0,9.30594757]
[1770469992070,8.77702792,2040.3,2039.0,9.30594757]
[1770469996670,8.77702792,2040.1,2039.0,9.30594757]
[1770469999473,8.77702792,2040.1,2037.8,9.30594757]
[1770469999474,2.62536138,2039.1,2037.8,9.30594757]
[1770469999669,8.77702792,2038.6,2037.7,9.13094757]
[1770470000071,8.77702792,2038.3,2037.3,9.30594757]
[1770470001174,8.77702792,2038.5,2037.3,9.30594757]
[1770470002674,8.77702792,2038.5,2037.2,0.30894604]
[1770470002675,8.77702792,2038.9,2037.5,9.30594757]
[1770470005279,8.77702792,2038.6,2037.5,9.30594757]
[1770470008581,8.77702792,2038.3,2037.5,9.30594757]
[1770470008882,8.77702792,2038.3,2037.2,0.30894604]
[1770470008883,8.77702792,2037.9,2036.6,9.30594757]
[1770470009082,8.77702792,2037.9,2036.5,2.93312741]
[1770470009083,8.77702792,2038.1,2037.2,9.30594757]
[1770470009788,8.77702792,2038.3,2037.2,9.30594757]
[1770470010381,8.77702792,2038.1,2037.2,9.30594757]
[1770470010882,8.77702792,2038.7,2037.2,9.30594757]
[1770470011885,8.77702792,2039.0,2037.7,9.30594757]
[1770470012083,2.62536138,2039.5,2037.7,9.30594757]
[1770470012084,8.77702792,2039.3,2037.7,9.30594757]
[1770470012289,11.4023893,2039.5,2037.7,9.30594757]
[1770470012589,8.77702792,2039.4,2037.7,9.30594757]
[1770470012887,8.77702792,2039.3,2037.7,9.30594757]
[1770470013088,8.77702792,2039.5,2038.0,9.30594757]
[1770470013288,8.77702792,2039.7,2038.3,9.30594757]
[1770470014390,8.77702792,2039.4,2038.3,9.30594757]
[1770470015092,0.00558266,2039.7,2038.3,9.30594757]
[1770470015093,8.77702792,2039.6,2038.3,9.30594757]
[1770470017295,8.68834006,2039.4,2038.3,9.30594757]
[1770470019798,8.68834006,2039.1,2038.3,9.30594757]
[1770470020598,8.68834006,2039.3,2038.3,9.30594757]
[1770470024192,8.68834006,2039.5,2038.3,9.30594757]
[1770470024398,8.69392272,2039.7,2038.3,9.30594757]
[1770470025394,0.00558266,2039.7,2038.6,8.77360409]
[1770470025600,8.68834006,2040.3,2038.9,8.77360409]
[1770470026407,8.68834006,2040.1,2038.9,8.77360409]
[1770470026597,8.69334027,2040.1,2038.9,8.77360409]
[1770470028600,8.68834006,2039.8,2038.9,8.77360409]
[1770470029996,8.68834006,2039.2,2038.6,8.77710133]
[1770470031906,8.68834006,2039.2,2038.0,8.77360409]
[1770470032211,8.68834006,2038.9,2038.0,8.77360409]
[1770470033105,8.68834006,2038.9,2038.0,8.77765418]
[1770470034009,8.68834006,2039.2,2038.0,8.77765418]
[1770470034304,8.68834006,2039.4,2038.0,8.77765418]
[1770470035208,8.68834006,2039.5,2038.0,8.77765418]
[1770470038813,8.68834006,2039.3,2038.0,8.77765418]
[1770470040715,8.68834006,2039.5,2038.0,9.02324418]
[1770470040913,8.68834006,2039.5,2038.1,8.77360409]
[1770470041109,8.68834006,2039.7,2038.1,8.77360409]
[1770470041310,8.68834006,2039.7,2038.2,13.72876129]
[1770470041511,8.68834006,2039.7,2038.3,8.77360409]
[1770470043207,8.68834006,2039.6,2038.3,8.77360409]
[1770470044908,8.68834006,2039.8,2038.3,8.77360409]
[1770470045319,8.68834006,2039.8,2038.4,8.77360409]
[1770470045515,7.14358322,2039.9,2038.6,8.77360409]
[1770470045709,8.68834006,2040.0,2038.6,8.77360409]
[1770470047520,8.68834006,2040.0,2038.7,9.05927866]
[1770470047721,0.00500021,2040.1,2038.7,9.05927866]
[1770470047908,9.29082647,2040.1,2038.9,9.05927866]
[1770470048712,0.00500021,2040.1,2038.9,9.05927866]
[1770470048929,0.00500021,2040.1,2039.0,9.05927866]
[1770470050218,9.01189242,2040.1,2039.0,9.05927866]
[1770470051916,0.00500021,2040.1,2039.0,9.05927866]
[1770470052111,9.01189242,2040.1,2039.0,9.05927866]
[1770470052827,0.00500021,2040.1,2039.0,9.05927866]
[1770470054121,1e-08,2040.1,2039.0,9.05927866]
[1770470054519,1e-08,2040.1,2039.0,9.30474866]
[1770470054925,1e-08,2040.1,2039.1,8.82320859]
[1770470056021,9.00689222,2040.1,2039.1,8.82320859]
[1770470057324,1e-08,2040.1,2039.1,8.82320859]
[1770470063126,1e-08,2040.1,2039.1,9.06867859]
[1770470063524,9.00689221,2040.6,2039.4,8.82320859]
[1770470064424,9.01275179,2040.6,2039.4,8.82320859]
[1770470066327,9.01275179,2040.6,2039.4,9.1359615]
[1770470066730,9.01275179,2040.6,2039.5,8.82320859]
[1770470067031,9.01275179,2040.6,2039.5,8.82782831]
[1770470075231,0.00585958,2040.6,2039.5,8.82782831]
[1770470075438,9.01275179,2040.6,2039.5,8.82782831]
[1770470075737,8.2152727,2040.6,2039.6,8.82320859]
[1770470076836,8.21998997,2040.6,2039.7,8.71602284]
[1770470084646,8.21998997,2040.6,2039.9,8.71602284]
[1770470084841,8.21998997,2040.6,2039.9,2.832]
[1770470085239,0.00471727,2040.6,2040.0,8.71602284]
[1770470085838,8.30150599,2040.7,2040.0,8.71602284]
[1770470086744,8.307641,2040.7,2040.0,8.71602284]
[1770470089245,8.307641,2040.7,2039.8,8.71602284]
[1770470090646,0.00613501,2040.7,2040.0,8.71602284]
[1770470091844,8.30917181,2040.7,2040.0,8.71602284]
[1770470092038,0.00613501,2040.7,2040.0,8.71602284]
[1770470092839,8.30917181,2040.7,2039.9,2.832]
[1770470093149,8.3030368,2040.5,2039.7,8.71602284]